bitfinex/quotes_BTCUSD_20220120
["timestamp","ask_amount","ask_price","bid_price","bid_amount"]
[1642686150309,0.06058,42457.0,42454.0,11.66309613]
[1642686150505,0.61058,42455.0,42454.0,11.66309613]
[1642686150704,0.65788,42455.0,42454.0,11.66309613]
[1642686150902,0.82827018,42455.0,42454.0,11.66309613]
[1642686151101,0.92817018,42455.0,42454.0,11.66309613]
[1642686151304,1.42817018,42455.0,42454.0,11.19154313]
[1642686151504,2.03447307,42455.0,42454.0,7.97084313]
[1642686151702,1.03467307,42455.0,42454.0,7.77124313]
[1642686151903,0.93477307,42455.0,42454.0,7.77124313]
[1642686152103,0.77827018,42455.0,42454.0,7.77124313]
[1642686152904,1.01565207,42455.0,42454.0,7.77124313]
[1642686153104,1.27219987,42455.0,42454.0,7.77124313]
[1642686153356,1.11555207,42455.0,42454.0,7.77124313]
[1642686153554,1.47200009,42455.0,42454.0,7.77124313]
[1642686153956,1.47200009,42455.0,42454.0,4.05354403]
[1642686153957,2.72200009,42455.0,42454.0,4.05354403]
[1642686154157,3.77800009,42455.0,42454.0,3.50450492]
[1642686154356,3.77800009,42455.0,42454.0,2.11020314]
[1642686154357,3.85257809,42455.0,42454.0,2.11020314]
[1642686154555,3.68841309,42455.0,42454.0,2.11020314]
[1642686154860,3.68841309,42455.0,42454.0,0.69524151]
[1642686154861,4.85473207,42455.0,42454.0,0.69524151]
[1642686155054,4.33793707,42455.0,42454.0,0.22358551]
[1642686155254,1.31180251,42451.0,42450.0,14.44991679]
[1642686155461,0.725788,42451.0,42450.0,13.50663679]
[1642686155659,1.050685,42451.0,42450.0,13.50672274]
[1642686155854,0.89617818,42451.0,42450.0,13.50672274]
[1642686156654,0.99607818,42451.0,42450.0,13.50672274]
[1642686156856,1.5582904,42451.0,42450.0,13.03510674]
[1642686157306,1.8082904,42451.0,42450.0,12.56349174]
[1642686157504,1.2582904,42451.0,42450.0,12.56349174]
[1642686158100,3.0142904,42451.0,42450.0,12.09187474]
[1642686158304,3.7081304,42451.0,42450.0,12.09187474]
[1642686158501,6.2146994,42451.0,42450.0,11.58056174]
[1642686158700,6.2146994,42451.0,42450.0,10.56765774]
[1642686158701,6.4177164,42451.0,42450.0,10.56765774]
[1642686158902,6.6946394,42451.0,42450.0,10.56765774]
[1642686159202,5.2806394,42451.0,42450.0,10.09596474]
[1642686159402,5.2806394,42451.0,42450.0,10.09199522]
[1642686159403,2.3943904,42451.0,42450.0,10.09199522]
[1642686159600,3.6503904,42451.0,42450.0,10.09199522]
[1642686159803,3.4003904,42451.0,42450.0,10.09199522]
[1642686160005,3.3893904,42451.0,42450.0,10.09199522]
[1642686160401,3.7253194,42451.0,42450.0,9.62037122]
[1642686160703,4.9528594,42451.0,42450.0,9.62037122]
[1642686160974,8.508608,42451.0,42450.0,8.09797526]
[1642686161175,8.170958,42451.0,42450.0,8.09797526]
[1642686161371,5.795682,42451.0,42450.0,7.15457126]
[1642686161574,5.795682,42451.0,42450.0,6.68283301]
[1642686161773,5.795682,42451.0,42450.0,6.21117601]
[1642686161972,5.024446,42451.0,42450.0,6.21117601]
[1642686162172,5.69283421,42451.0,42450.0,6.21117601]
[1642686162372,5.69283421,42451.0,42450.0,5.73950201]
[1642686162578,5.61283421,42451.0,42450.0,5.73950201]
[1642686162775,4.14699621,42451.0,42450.0,5.73950201]
[1642686162971,6.87950521,42451.0,42450.0,5.26782101]
[1642686163190,7.02590759,42451.0,42450.0,4.57077006]
[1642686163374,12.84871959,42451.0,42450.0,4.09901006]
[1642686163575,0.32002905,42450.0,42411.0,2.47277483]
[1642686163779,0.06058,42442.0,42439.0,0.00120464]
[1642686164076,1.06058,42440.0,42422.0,0.41404723]
[1642686164277,0.06058,42426.0,42422.0,0.00048133]
[1642686164476,0.06058,42424.0,42423.0,0.00046414]
[1642686164708,0.06058,42424.0,42421.0,0.00049852]
[1642686164914,0.06058,42424.0,42420.0,0.00051571]
[1642686165115,0.06058,42424.0,42419.0,0.0005329]
[1642686165308,0.06058,42421.0,42419.0,0.0005329]
[1642686165511,0.11058,42421.0,42419.0,0.0005329]
[1642686165707,0.11058,42421.0,42420.0,0.801]
[1642686166108,0.11058,42421.0,42420.0,0.80151571]
[1642686166811,0.12358,42421.0,42420.0,1.14717614]
[1642686167509,0.12358,42421.0,42420.0,0.80151571]
[1642686168009,0.11058,42421.0,42420.0,0.80151571]
[1642686168208,0.13138,42421.0,42420.0,0.80151571]
[1642686168456,0.13138,42421.0,42420.0,1.16113193]
[1642686168655,0.13138,42421.0,42420.0,0.80151571]
[1642686168855,0.14338,42421.0,42420.0,0.80151571]
[1642686170054,0.13138,42421.0,42420.0,0.80151571]
[1642686170561,0.69036,42421.0,42420.0,0.80151571]
[1642686170756,0.64538,42421.0,42420.0,0.80151571]
[1642686172106,0.63138,42421.0,42420.0,0.80151571]
[1642686172403,0.63138,42421.0,42420.0,1.30151571]
[1642686172803,0.64538,42421.0,42420.0,1.30151571]
[1642686173604,0.64538,42421.0,42420.0,0.80151571]
[1642686173806,0.76586166,42421.0,42420.0,0.80151571]
[1642686174005,0.75186166,42421.0,42420.0,0.80151571]
[1642686174905,0.76386166,42421.0,42420.0,0.80151571]
[1642686175307,0.92450387,42421.0,42420.0,0.80151571]
[1642686175508,0.76386166,42421.0,42420.0,0.80151571]
[1642686175949,0.91250387,42421.0,42420.0,0.80151571]
[1642686176354,0.75186166,42421.0,42420.0,1.20151571]
[1642686176550,0.91250387,42421.0,42420.0,1.20151571]
[1642686176749,0.92450387,42421.0,42420.0,1.20151571]
[1642686176950,0.76386166,42421.0,42420.0,1.20151571]
[1642686177151,0.92450387,42421.0,42420.0,1.20151571]
[1642686177850,0.76386166,42421.0,42420.0,1.20151571]
[1642686178051,0.91250387,42421.0,42420.0,1.55369654]
[1642686178256,0.75186166,42421.0,42420.0,1.20151571]
[1642686178660,0.16064221,42423.0,42421.0,1.3]
[1642686178857,0.16064221,42424.0,42422.0,1.70457269]
[1642686179153,0.00129822,42433.0,42423.0,1.67980835]
[1642686179614,0.0999,42436.0,42427.0,0.39575337]
[1642686179814,0.0999,42436.0,42428.0,0.22752175]
[1642686180012,0.15,42429.0,42428.0,0.22789994]
[1642686180214,0.15,42429.0,42428.0,0.22752175]
[1642686180820,0.163,42429.0,42428.0,0.22752175]
[1642686181212,0.163,42429.0,42428.0,1.52752175]
[1642686181813,0.263,42429.0,42428.0,1.52752175]
[1642686182113,0.25,42429.0,42428.0,1.52752175]
[1642686182515,0.25,42429.0,42428.0,1.88126733]
[1642686182714,0.25,42429.0,42428.0,1.52752175]
[1642686182911,0.168,42429.0,42428.0,1.52752175]
[1642686183360,0.26518663,42429.0,42428.0,1.52752175]
[1642686183957,0.24718663,42429.0,42428.0,1.52752175]
[1642686184159,0.2,42429.0,42428.0,1.52752175]
[1642686184359,0.25,42429.0,42428.0,1.52752175]
[1642686184758,0.262,42429.0,42428.0,1.52752175]
[1642686184960,0.262,42429.0,42428.0,1.3]
[1642686185159,0.2619998,42429.0,42428.0,1.3]
[1642686185561,0.058962,42434.0,42429.0,1.312]
[1642686185777,0.11221404,42435.0,42432.0,0.00127041]
[1642686185968,4.04e-06,42435.0,42434.0,0.00124174]
[1642686186164,0.15,42439.0,42434.0,0.00124174]
[1642686186363,0.15,42439.0,42434.0,0.00151679]
[1642686186565,0.15,42439.0,42436.0,0.32972506]
[1642686186763,0.162,42439.0,42436.0,0.38866653]
[1642686186965,0.1998,42443.0,42437.0,0.24097889]
[1642686187213,0.00042373,42444.0,42437.0,0.24097889]
[1642686187214,0.00042373,42444.0,42442.0,0.00120069]
[1642686187511,0.16064221,42450.0,42442.0,0.00120069]
[1642686187512,0.07161602,42459.0,42443.0,1.48474469]
[1642686187710,0.00042384,42444.0,42443.0,1.48486503]
[1642686187907,0.00042384,42444.0,42443.0,1.48474469]
[1642686188307,0.00169503,42452.0,42444.0,1.3]
[1642686188511,0.42039135,42458.0,42444.0,1.3]
[1642686188708,0.22641007,42448.0,42445.0,8.596e-05]
[1642686188911,0.01006876,42459.0,42447.0,0.00129921]
[1642686189109,6.876e-05,42459.0,42447.0,0.00129921]
[1642686189409,0.04804951,42456.0,42452.0,0.00122459]
[1642686189609,0.15759189,42454.0,42453.0,0.20711015]
[1642686189809,0.11,42454.0,42453.0,0.20711015]
[1642686190010,0.11006876,42454.0,42453.0,1.00711015]
[1642686190609,0.16006876,42454.0,42453.0,1.00711015]
[1642686190852,0.17906876,42454.0,42453.0,1.00711015]
[1642686191256,0.17906876,42454.0,42453.0,0.20711015]
[1642686192055,0.16006876,42454.0,42453.0,0.90711015]
[1642686192856,0.17606876,42454.0,42453.0,0.90711015]
[1642686193155,0.17606876,42454.0,42453.0,1.50711015]
[1642686193356,0.17606876,42454.0,42453.0,1.83860449]
[1642686193660,0.17606876,42454.0,42453.0,1.50711015]
[1642686193856,0.2964633,42454.0,42453.0,0.90711015]
[1642686194055,0.2964633,42454.0,42453.0,1.50711015]
[1642686194056,0.3204633,42454.0,42453.0,1.50711015]
[1642686194257,0.41341756,42454.0,42453.0,1.50711015]
[1642686194608,0.36900281,42454.0,42453.0,1.50711015]
[1642686194909,0.38193832,42454.0,42453.0,1.50711015]
[1642686195709,0.43193832,42454.0,42453.0,1.50711015]
[1642686196215,0.41593832,42454.0,42453.0,1.50711015]
[1642686196609,0.3204633,42454.0,42453.0,1.50711015]
[1642686196810,0.3364633,42454.0,42453.0,1.50711015]
[1642686198659,0.00042144,42456.0,42454.0,1.53967386]
[1642686198869,0.1015855,42462.0,42455.0,0.36749243]
[1642686198870,0.0016855,42462.0,42455.0,0.36749243]
[1642686199064,0.0016855,42462.0,42456.0,0.05890458]
[1642686199359,0.001,42463.0,42461.0,0.00124382]
[1642686199559,0.002,42465.0,42462.0,0.72421034]
[1642686199958,0.15,42463.0,42462.0,0.72421034]
[1642686200159,0.15,42463.0,42461.0,0.00124382]
[1642686200372,0.15,42463.0,42448.0,1.4448]
[1642686200373,0.09227115,42462.0,42448.0,1.4448]
[1642686200561,0.00120737,42460.0,42448.0,0.9004]
[1642686200761,0.15,42456.0,42450.0,6.876e-05]
[1642686200960,0.15,42456.0,42449.0,8.595e-05]
[1642686200961,0.0337095,42454.0,42449.0,8.595e-05]
[1642686201159,0.0337095,42454.0,42452.0,0.19586449]
[1642686201367,0.0473,42456.0,42452.0,0.19586449]
[1642686201368,0.03828623,42453.0,42452.0,0.19586449]
[1642686201557,0.15,42453.0,42452.0,0.19586449]
[1642686202221,0.15008595,42459.0,42452.0,0.19586449]
[1642686202422,8.595e-05,42459.0,42452.0,0.19586449]
[1642686202625,0.14887858,42461.0,42454.0,1.3]
[1642686202825,0.15,42463.0,42454.0,1.3]
[1642686202826,0.15,42463.0,42460.0,0.20353281]
[1642686203023,0.002,42464.0,42461.0,0.19216893]
[1642686203224,0.15006876,42462.0,42461.0,0.19216893]
[1642686203424,0.15006876,42462.0,42454.0,1.3]
[1642686203626,0.15,42456.0,42454.0,1.3]
[1642686204226,0.15,42456.0,42455.0,0.19777576]
[1642686206669,0.3,42456.0,42455.0,0.19777576]
[1642686208868,0.00041896,42458.0,42455.0,0.19777576]
[1642686209064,0.0999,42461.0,42455.0,0.19777576]
[1642686209268,0.15,42456.0,42455.0,0.19777576]
[1642686213017,0.0509756,42464.0,42457.0,1.3]
[1642686213018,0.0036756,42464.0,42457.0,1.3]
[1642686213373,0.0036756,42464.0,42462.0,0.00122388]
[1642686213572,0.0036756,42464.0,42458.0,6.876e-05]
[1642686213771,0.002,42464.0,42458.0,6.876e-05]
[1642686213973,0.12038195,42463.0,42462.0,0.2036853]
[1642686214775,0.12038195,42463.0,42458.0,0.22141556]
[1642686215080,0.15,42456.0,42455.0,0.00012033]
[1642686215278,0.1963,42456.0,42455.0,0.00012033]
[1642686215477,0.31568195,42456.0,42450.0,0.00020628]
[1642686215676,0.31568195,42456.0,42449.0,0.35980571]
[1642686215976,0.31568195,42456.0,42444.0,0.00123123]
[1642686215977,0.27038195,42455.0,42451.0,0.27855931]
[1642686216175,0.0473,42454.0,42451.0,0.27855931]
[1642686216375,0.16768195,42454.0,42452.0,0.0001719]
[1642686216775,0.26738195,42453.0,42452.0,0.0001719]
[1642686217708,0.26738195,42453.0,42452.0,1.3001719]
[1642686219310,0.31468195,42453.0,42452.0,1.3001719]
[1642686219515,0.31468195,42453.0,42452.0,1.60135168]
[1642686219910,0.31468195,42453.0,42452.0,1.3001719]
[1642686221159,0.1943,42453.0,42452.0,1.3001719]
[1642686221861,0.19424,42453.0,42452.0,1.3001719]
[1642686223061,0.31462971,42453.0,42452.0,1.3001719]
[1642686228215,0.26732971,42453.0,42452.0,1.3001719]
[1642686231759,0.26732971,42453.0,42452.0,0.0001719]
[1642686232206,0.26732971,42453.0,42450.0,0.00020628]
[1642686232406,0.15,42452.0,42451.0,0.22532149]
[1642686232622,0.27038971,42452.0,42451.0,1.32532149]
[1642686232909,0.17038971,42452.0,42451.0,1.10018909]
[1642686233106,0.31708971,42452.0,42451.0,1.10018909]
[1642686233508,0.31708971,42452.0,42451.0,1.30018909]
[1642686233906,8.971e-05,42452.0,42451.0,1.47234284]
[1642686234310,0.5,42453.0,42451.0,1.10018909]
[1642686234707,0.5,42453.0,42452.0,0.7501719]
[1642686235112,0.65,42453.0,42452.0,0.7501719]
[1642686235307,0.65,42453.0,42452.0,0.0001719]
[1642686235512,0.65,42453.0,42452.0,0.4001719]
[1642686235865,1.00085354,42453.0,42452.0,0.0001719]
[1642686236263,1.31119598,42453.0,42445.0,0.00029224]
[1642686236464,0.0999,42448.0,42445.0,0.00029224]
[1642686236664,0.0473,42447.0,42445.0,0.00029224]
[1642686236865,0.1472,42446.0,42445.0,0.00029224]
[1642686237063,0.1972,42446.0,42444.0,0.00147554]
[1642686237264,0.1972,42446.0,42445.0,0.55029224]
[1642686237669,0.3472,42446.0,42445.0,0.55029224]
[1642686238065,0.4972,42446.0,42445.0,0.55029224]
[1642686238265,0.3973,42446.0,42445.0,0.55029224]
[1642686238965,0.4123,42446.0,42445.0,0.55029224]
[1642686240212,0.3973,42446.0,42445.0,0.55029224]
[1642686240708,0.3973,42446.0,42445.0,0.25029224]
[1642686240907,0.4123,42446.0,42445.0,0.25029224]
[1642686241513,0.4123,42446.0,42445.0,0.85029224]
[1642686241710,0.2123,42446.0,42445.0,0.85029224]
[1642686242110,0.15,42446.0,42445.0,0.85029224]
[1642686243110,0.268,42446.0,42445.0,0.85029224]
[1642686244160,0.25,42446.0,42445.0,0.85029224]
[1642686244963,0.267,42446.0,42445.0,0.85029224]
[1642686245368,0.267,42446.0,42443.0,0.00216611]
[1642686245572,0.00129987,42444.0,42443.0,0.00216611]
[1642686245766,0.04859987,42444.0,42443.0,0.00216611]
[1642686245967,0.0473,42444.0,42443.0,0.00216611]
[1642686246184,0.167,42446.0,42443.0,0.00226513]
[1642686246367,0.15,42446.0,42443.0,0.00226513]
[1642686246765,0.15,42446.0,42443.0,0.001]
[1642686246966,0.0969992,42445.0,42443.0,0.001]
[1642686247407,0.10156583,42444.0,42443.0,0.001]
[1642686247609,0.211,42446.0,42443.0,0.001]
[1642686247809,0.22906741,42444.0,42443.0,0.001]
[1642686248615,0.32906741,42444.0,42443.0,0.001]
[1642686248809,1.13111913,42444.0,42443.0,0.001]
[1642686249008,1.24511913,42444.0,42443.0,0.001]
[1642686249210,0.56348708,42444.0,42443.0,0.001]
[1642686249510,0.62382229,42444.0,42443.0,0.701]
[1642686249709,0.46348708,42444.0,42443.0,0.701]
[1642686250514,0.61348708,42444.0,42443.0,0.701]
[1642686250710,0.38441967,42444.0,42443.0,0.701]
[1642686250964,0.39441967,42444.0,42443.0,0.701]
[1642686251354,0.39441967,42444.0,42443.0,0.70016499]
[1642686251654,0.39361865,42444.0,42443.0,0.70016499]
[1642686252254,0.36961865,42444.0,42443.0,0.70016499]
[1642686252456,0.36961865,42444.0,42443.0,1.34806933]
[1642686252659,0.16033521,42450.0,42447.0,0.00125893]
[1642686252856,0.16033521,42451.0,42447.0,0.00125893]
[1642686253062,6.877e-05,42449.0,42447.0,0.00125893]
[1642686254254,6.877e-05,42449.0,42445.0,0.31357109]
[1642686254709,0.15,42446.0,42445.0,0.31656324]
[1642686255008,0.15,42445.0,42444.0,1.59247349]
[1642686255414,0.25,42445.0,42444.0,1.53354837]
[1642686255616,0.25,42445.0,42444.0,1.30116611]
[1642686255810,0.25,42445.0,42444.0,1.3]
[1642686256010,0.25,42445.0,42443.0,0.00016499]
[1642686256011,0.05,42444.0,42443.0,0.00016499]
[1642686256409,0.2,42444.0,42443.0,0.00016499]
[1642686256610,0.43671245,42444.0,42443.0,0.00016499]
[1642686257108,0.45271245,42444.0,42443.0,0.00016499]
[1642686257311,0.45271245,42444.0,42443.0,0.80016499]
[1642686257808,0.266,42444.0,42443.0,0.80016499]
[1642686258459,0.25,42444.0,42443.0,1.51048091]
[1642686259057,0.264,42444.0,42443.0,1.51048091]
[1642686259658,0.264,42444.0,42443.0,1.01048091]
[1642686259857,0.264,42444.0,42443.0,0.80016499]
[1642686260261,0.25,42444.0,42443.0,0.80016499]
[1642686261062,0.264,42444.0,42443.0,0.80016499]
[1642686261261,0.264,42444.0,42443.0,1.30016499]
[1642686261660,0.264,42444.0,42443.0,0.80016499]
[1642686262311,0.25,42444.0,42443.0,1.30016499]
[1642686263112,0.264,42444.0,42443.0,1.30016499]
[1642686264311,0.25,42444.0,42443.0,1.30016499]
[1642686265009,0.265,42444.0,42443.0,0.80016499]
[1642686265211,0.265,42444.0,42443.0,1.30016499]
[1642686265612,0.265,42444.0,42443.0,1.30116499]
[1642686266255,0.25,42444.0,42443.0,1.30116499]
[1642686267158,0.264,42444.0,42443.0,1.30116499]
[1642686267757,0.38441035,42444.0,42443.0,1.30116499]
[1642686268860,0.25,42444.0,42443.0,1.30116499]
[1642686269159,0.265,42444.0,42443.0,1.30116499]
[1642686269359,0.265,42444.0,42443.0,1.62510882]
[1642686270011,0.265,42444.0,42443.0,1.30116499]
[1642686270210,0.38540845,42444.0,42443.0,1.30116499]
[1642686270407,0.25,42444.0,42443.0,1.6231022]
[1642686270608,0.25,42444.0,42443.0,1.61784171]
[1642686270808,0.25,42444.0,42443.0,1.30116499]
[1642686271010,0.265,42444.0,42443.0,1.30116499]
[1642686273109,0.282,42444.0,42443.0,1.30116499]
[1642686273363,0.282,42444.0,42443.0,1.62336671]
[1642686273563,0.282,42444.0,42443.0,1.30116499]
[1642686274363,0.37040595,42444.0,42443.0,1.30116499]
[1642686274762,0.25,42444.0,42443.0,1.30116499]
[1642686274962,0.37040555,42444.0,42443.0,1.30116499]
[1642686275163,0.40140555,42444.0,42443.0,1.30116499]
[1642686275364,0.28015796,42444.0,42443.0,1.30116499]
[1642686275565,0.40056477,42444.0,42443.0,0.80116499]
[1642686275964,0.40056477,42444.0,42443.0,0.00116499]
[1642686276164,0.40056477,42444.0,42443.0,0.50116499]
[1642686277210,0.31515796,42444.0,42443.0,1.30116499]
[1642686277411,0.43556218,42444.0,42443.0,1.30116499]
[1642686277612,0.31515796,42444.0,42443.0,1.30116499]
[1642686277812,0.41205206,42444.0,42443.0,1.30116499]
[1642686278014,0.43556307,42444.0,42443.0,1.30116499]
[1642686278212,0.43556307,42444.0,42443.0,0.50116499]
[1642686278416,0.36956307,42444.0,42443.0,0.50116499]
[1642686279017,0.40356307,42444.0,42443.0,1.30116499]
[1642686279311,0.40356307,42444.0,42443.0,1.36174499]
[1642686279911,0.28315796,42444.0,42443.0,1.36174499]
[1642686280311,0.36956154,42444.0,42443.0,1.36174499]
[1642686280515,0.24915796,42444.0,42443.0,1.6922181]
[1642686280966,0.36956175,42444.0,42443.0,1.6922181]
[1642686281161,0.29015796,42444.0,42443.0,1.6922181]
[1642686281363,0.79015796,42444.0,42443.0,1.36174499]
[1642686282164,0.91056147,42444.0,42443.0,1.36174499]
[1642686282865,0.86956147,42444.0,42443.0,1.36174499]
[1642686283064,0.90356147,42444.0,42443.0,1.36174499]
[1642686283264,0.78315796,42444.0,42443.0,1.36174499]
[1642686283871,0.78315796,42444.0,42443.0,1.69079068]
[1642686284266,0.74915796,42444.0,42443.0,1.69079068]
[1642686284466,0.74915796,42444.0,42443.0,1.36174499]
[1642686284911,0.74915796,42444.0,42443.0,1.6792855]
[1642686285110,0.76415796,42444.0,42443.0,1.36174499]
[1642686285511,0.76415796,42444.0,42443.0,1.35979244]
[1642686286312,0.74915796,42444.0,42443.0,1.35979244]
[1642686287211,0.76315796,42444.0,42443.0,1.35979244]
[1642686288111,0.76315796,42444.0,42443.0,1.68067284]
[1642686288361,0.76315796,42444.0,42443.0,1.34502867]
[1642686288362,0.74915796,42444.0,42443.0,1.34502867]
[1642686288562,0.84619904,42444.0,42443.0,1.34502867]
[1642686288968,0.74915796,42444.0,42443.0,1.33002867]
[1642686289165,0.76215796,42444.0,42443.0,1.33002867]
[1642686290365,0.74915796,42444.0,42443.0,1.33002867]
[1642686291166,0.76315796,42444.0,42443.0,1.64229416]
[1642686291370,6.877e-05,42449.0,42445.0,0.06058]
[1642686291568,6.877e-05,42449.0,42448.0,0.00123638]
[1642686292814,6.877e-05,42449.0,42446.0,0.2874272]
[1642686293221,0.15,42448.0,42446.0,0.2874272]
[1642686293614,0.2,42448.0,42446.0,0.2874272]
[1642686294415,0.2,42448.0,42447.0,0.36842509]
[1642686295015,0.2,42448.0,42447.0,0.06058]
[1642686295214,0.211,42448.0,42447.0,0.06058]
[1642686295862,0.211,42448.0,42447.0,1.36058]
[1642686296464,0.2,42448.0,42447.0,1.36058]
[1642686297066,0.211,42448.0,42447.0,1.36058]
[1642686298368,0.2,42448.0,42447.0,1.36058]
[1642686299171,0.223,42448.0,42447.0,1.36058]
[1642686300724,6.877e-05,42449.0,42447.0,1.52058]
[1642686300917,0.15,42455.0,42448.0,0.78185772]
[1642686301117,0.15,42455.0,42454.0,0.29106502]
[1642686301322,0.002,42464.0,42458.0,0.06058]
[1642686301517,0.002,42464.0,42462.0,0.06058]
[1642686301719,0.002,42464.0,42463.0,1.40214855]
[1642686301918,0.002,42464.0,42463.0,1.16058]
[1642686302116,0.00225785,42464.0,42463.0,1.16058]
[1642686302318,0.12262657,42464.0,42463.0,1.16058]
[1642686302718,0.12262657,42464.0,42463.0,0.06058]
[1642686302918,0.12262657,42464.0,42463.0,0.46058]
[1642686303385,0.15062657,42464.0,42463.0,0.46058]
[1642686303784,0.15062657,42464.0,42463.0,0.96058]
[1642686303986,0.03025785,42464.0,42463.0,0.96058]
[1642686304183,0.03025785,42464.0,42463.0,0.46058]
[1642686304382,0.15062852,42464.0,42463.0,0.46058]
[1642686304584,0.12262852,42464.0,42463.0,0.46058]
[1642686304783,0.12262852,42464.0,42463.0,0.81058]
[1642686305188,0.14562852,42464.0,42463.0,0.81058]
[1642686305985,0.02525785,42464.0,42463.0,0.81058]
[1642686306183,0.02525785,42464.0,42463.0,1.0499696]
[1642686306383,0.00225785,42464.0,42463.0,1.0499696]
[1642686306787,0.00225785,42464.0,42463.0,1.5999696]
[1642686307212,0.05825785,42464.0,42463.0,1.5999696]
[1642686308014,0.05725785,42464.0,42463.0,1.5999696]
[1642686308515,0.1998,42465.0,42464.0,1.36058]
[1642686309116,0.2408,42465.0,42464.0,1.36758]
[1642686309319,0.2408,42465.0,42464.0,0.06758]
[1642686309518,0.26262525,42465.0,42464.0,0.06758]
[1642686309718,0.26262525,42465.0,42464.0,1.11758]
[1642686310524,0.26262525,42465.0,42464.0,1.11058]
[1642686310525,0.22162525,42465.0,42464.0,1.11058]
[1642686310720,0.22162525,42465.0,42464.0,0.06058]
[1642686310968,0.26892525,42465.0,42464.0,0.06058]
[1642686311171,0.40829604,42465.0,42464.0,0.06058]
[1642686311567,0.40829604,42465.0,42447.0,0.2367781]
[1642686311568,0.117844,42463.0,42447.0,0.0023855]
[1642686311769,0.2951094,42456.0,42445.0,0.83899499]
[1642686311966,0.0473,42455.0,42448.0,0.00027505]
[1642686312165,0.0473,42454.0,42448.0,0.00027505]
[1642686312366,0.0473,42454.0,42448.0,0.05919445]
[1642686312587,0.04857219,42454.0,42448.0,0.05919445]
[1642686312766,0.04857219,42454.0,42449.0,0.00025785]
[1642686312767,0.0395001,42452.0,42449.0,0.00025785]
[1642686312972,0.0473,42451.0,42449.0,0.00025785]
[1642686313166,0.03304071,42450.0,42444.0,0.00034381]
[1642686313367,0.09095743,42449.0,42444.0,0.00034381]
[1642686313565,0.09095743,42449.0,42445.0,0.00085116]
[1642686313566,0.03319387,42448.0,42445.0,0.00085116]
[1642686313768,0.01727219,42454.0,42445.0,0.00085116]
[1642686313769,0.04585836,42446.0,42445.0,0.00085116]
[1642686313968,0.09855581,42446.0,42445.0,0.00085116]
[1642686314167,0.21897133,42446.0,42445.0,0.00085116]
[1642686314368,0.24079658,42446.0,42445.0,0.00085116]
[1642686314615,0.24079658,42446.0,42435.0,0.28372863]
[1642686314815,0.26262183,42446.0,42443.0,0.00120428]
[1642686315020,0.12041552,42445.0,42443.0,0.00120428]
[1642686315315,0.0473,42444.0,42443.0,0.00120428]
[1642686315520,0.04854273,42444.0,42443.0,0.00120428]
[1642686315716,0.16895825,42444.0,42443.0,0.00156528]
[1642686315916,0.16895825,42444.0,42443.0,0.000361]
[1642686316215,0.5165848,42444.0,42443.0,0.000361]
[1642686316418,0.6165848,42444.0,42443.0,0.000361]
[1642686316618,0.001215,42442.0,42441.0,0.00120432]
[1642686316821,0.73622196,42442.0,42440.0,0.09120432]
[1642686317019,0.2689611,42442.0,42440.0,0.09120432]
[1642686317218,0.22161181,42441.0,42440.0,0.09120432]
[1642686317418,0.26891181,42441.0,42440.0,0.09120432]
[1642686318468,0.16901181,42441.0,42440.0,0.09120432]
[1642686319070,0.19859629,42441.0,42440.0,0.09120432]
[1642686319269,0.31349629,42441.0,42440.0,0.09120432]
[1642686319668,0.33532154,42441.0,42440.0,0.09120432]
[1642686319870,0.45575255,42441.0,42440.0,0.09120432]
[1642686320069,0.55575255,42441.0,42440.0,0.09120432]
[1642686320270,0.4776778,42441.0,42440.0,0.09120432]
[1642686320470,0.4626778,42441.0,42440.0,0.09120432]
[1642686320674,0.69531079,42441.0,42440.0,0.09120432]
[1642686321069,0.79531079,42441.0,42440.0,0.09120432]
[1642686321269,0.80631079,42441.0,42440.0,0.09120432]
[1642686322138,1.33372806,42441.0,42440.0,0.07690432]
[1642686322333,1.50287397,42441.0,42440.0,0.07690432]
[1642686322533,1.49187397,42441.0,42440.0,0.07690432]
[1642686322731,1.49187397,42441.0,42438.0,0.00120456]
[1642686322937,1.49187397,42441.0,42415.0,9.739e-05]
[1642686322938,1.39199385,42439.0,42419.0,0.33606544]
[1642686323139,0.5907,42426.0,42414.0,0.42]
[1642686323341,0.00127102,42423.0,42420.0,0.00037818]
[1642686323533,0.0473,42422.0,42420.0,0.00037818]
[1642686323731,0.1973,42422.0,42420.0,0.00037818]
[1642686324132,2.93370622,42421.0,42420.0,0.00037818]
[1642686324332,2.98100622,42421.0,42420.0,0.00037818]
[1642686324530,2.93100622,42421.0,42420.0,0.40037818]
[1642686324932,2.95283147,42421.0,42420.0,0.40037818]
[1642686325332,2.96383147,42421.0,42420.0,0.38637818]
[1642686325535,0.2019505,42421.0,42420.0,0.93637818]
[1642686325732,0.1019505,42421.0,42420.0,0.93637818]
[1642686325972,0.0909505,42421.0,42420.0,0.93637818]
[1642686326567,0.0909505,42421.0,42420.0,1.28637818]
[1642686327168,0.1369505,42421.0,42420.0,1.28637818]
[1642686327371,0.1369505,42421.0,42420.0,0.38637818]
[1642686328367,0.37841233,42421.0,42418.0,0.00110981]
[1642686328576,0.001278,42419.0,42418.0,0.00110981]
[1642686328870,0.198578,42419.0,42418.0,0.00110981]
[1642686329070,0.198578,42419.0,42414.0,0.39300001]
[1642686329273,0.09089543,42418.0,42416.0,0.00110985]
[1642686329469,0.210578,42419.0,42416.0,0.00110985]
[1642686329470,0.1492026,42417.0,42416.0,1.00110985]
[1642686329723,0.1973,42417.0,42416.0,1.00110985]
[1642686329923,0.1973,42417.0,42416.0,1.00117861]
[1642686330122,0.21912525,42417.0,42416.0,1.00117861]
[1642686330323,0.21912525,42417.0,42416.0,1.00006876]
[1642686330522,0.21912525,42417.0,42416.0,1.30006876]
[1642686330722,0.2409505,42417.0,42416.0,1.30006876]
[1642686331323,0.2559505,42417.0,42416.0,1.30006876]
[1642686332723,0.2409505,42417.0,42416.0,1.30006876]
[1642686333369,0.2579505,42417.0,42416.0,1.30006876]
[1642686333966,0.2579505,42417.0,42416.0,1.00006876]
[1642686334566,0.2409505,42417.0,42416.0,1.30006876]
[1642686335171,0.1936505,42417.0,42416.0,1.60365407]
[1642686335368,0.2076505,42417.0,42416.0,1.30006876]
[1642686335770,0.2076505,42417.0,42416.0,1.59944774]
[1642686335970,0.2076505,42417.0,42416.0,1.30006876]
[1642686336170,0.5,42427.0,42417.0,0.014]
[1642686336377,0.5,42427.0,42419.0,0.05895614]
[1642686336572,8.595e-05,42425.0,42420.0,0.23770743]
[1642686336973,8.76e-06,42424.0,42421.0,0.00126595]